[Event "Early-Titled-Tuesday-Blitz-February-27-2024"]
[Site "Chess.com"]
[Date "2024.02.27"]
[Round "10"]
[White "As0nchess"]
[Black "GodzillaChessYoutube"]
[Result "1-0"]
[WhiteElo "2550"]
[BlackElo "2657"]
[TimeControl "180+1"]
[EndTime "9:57:14 PST"]
[Termination "As0nchess won by checkmate"]

1. e4 {[%clk 0:03:00.9]} 1... e5 {[%clk 0:02:56.9]} 2. Nf3 {[%clk 0:02:58.1]}
2... Nc6 {[%clk 0:02:57.4]} 3. Bc4 {[%clk 0:02:57.6]} 3... Be7 {[%clk
0:02:57.2]} 4. O-O {[%clk 0:02:55.3]} 4... Nf6 {[%clk 0:02:54.6]} 5. d3 {[%clk
0:02:55.3]} 5... d6 {[%clk 0:02:53.8]} 6. a4 {[%clk 0:02:53]} 6... Bg4 {[%clk
0:02:52.7]} 7. h3 {[%clk 0:02:51.6]} 7... Bh5 {[%clk 0:02:52.5]} 8. c3 {[%clk
0:02:50.1]} 8... Qd7 {[%clk 0:02:41]} 9. b4 {[%clk 0:02:48.1]} 9... a6 {[%clk
0:02:40.3]} 10. Nbd2 {[%clk 0:02:45]} 10... O-O {[%clk 0:02:37.9]} 11. Re1
{[%clk 0:02:40.8]} 11... Kh8 {[%clk 0:02:23.5]} 12. Nf1 {[%clk 0:02:37.2]} 12...
d5 {[%clk 0:01:58.5]} 13. exd5 {[%clk 0:02:36.5]} 13... Nxd5 {[%clk 0:01:59.1]}
14. Bd2 {[%clk 0:02:18.6]} 14... Nf4 {[%clk 0:01:07.1]} 15. Bxf4 {[%clk
0:02:00.6]} 15... exf4 {[%clk 0:01:08]} 16. d4 {[%clk 0:01:59.4]} 16... Bd6
{[%clk 0:00:59.9]} 17. Qd3 {[%clk 0:01:54]} 17... Bg6 {[%clk 0:00:51.1]} 18. Qd2
{[%clk 0:01:53.9]} 18... f6 {[%clk 0:00:42.4]} 19. Be6 {[%clk 0:01:52.7]} 19...
Qd8 {[%clk 0:00:39.6]} 20. b5 {[%clk 0:01:49.7]} 20... axb5 {[%clk 0:00:38.5]}
21. axb5 {[%clk 0:01:50.6]} 21... Rxa1 {[%clk 0:00:32.6]} 22. Rxa1 {[%clk
0:01:51.5]} 22... Ne7 {[%clk 0:00:29.8]} 23. c4 {[%clk 0:01:51]} 23... b6 {[%clk
0:00:20]} 24. Qc3 {[%clk 0:01:47.3]} 24... Nf5 {[%clk 0:00:16.4]} 25. N1d2
{[%clk 0:01:42.3]} 25... Re8 {[%clk 0:00:14.1]} 26. Bd5 {[%clk 0:01:42.1]} 26...
Ne7 {[%clk 0:00:10.4]} 27. Be4 {[%clk 0:01:39.3]} 27... Bxe4 {[%clk 0:00:06.4]}
28. Nxe4 {[%clk 0:01:40]} 28... Nf5 {[%clk 0:00:06.9]} 29. Qd3 {[%clk
0:01:35.6]} 29... Bf8 {[%clk 0:00:06.7]} 30. Ra7 {[%clk 0:01:31.3]} 30... g6
{[%clk 0:00:06.8]} 31. Nc3 {[%clk 0:01:28.8]} 31... Nd6 {[%clk 0:00:06.7]} 32.
Nd5 {[%clk 0:01:16.8]} 32... Bg7 {[%clk 0:00:06.1]} 33. Rxc7 {[%clk 0:01:15.8]}
33... Nxb5 {[%clk 0:00:04.9]} 34. Rb7 {[%clk 0:01:09.2]} 34... Nd6 {[%clk
0:00:04.4]} 35. Rxb6 {[%clk 0:01:09.3]} 35... Nf5 {[%clk 0:00:04.2]} 36. Rb7
{[%clk 0:01:06.8]} 36... Qd6 {[%clk 0:00:03.9]} 37. Qb3 {[%clk 0:01:02.8]} 37...
Rd8 {[%clk 0:00:03.9]} 38. Qa4 {[%clk 0:00:55.4]} 38... g5 {[%clk 0:00:03.3]}
39. Qa7 {[%clk 0:00:55.1]} 39... h5 {[%clk 0:00:03]} 40. Ne7 {[%clk 0:00:47.1]}
40... Nxe7 {[%clk 0:00:02.2]} 41. Rxe7 {[%clk 0:00:47.7]} 41... Rg8 {[%clk
0:00:02.6]} 42. c5 {[%clk 0:00:44.6]} 42... Qd5 {[%clk 0:00:02.9]} 43. Qd7
{[%clk 0:00:44.4]} 43... Qc4 {[%clk 0:00:02.9]} 44. Qe6 {[%clk 0:00:38]} 44...
Qc1+ {[%clk 0:00:01.8]} 45. Kh2 {[%clk 0:00:38.4]} 45... Qc2 {[%clk 0:00:02.2]}
46. Qe2 {[%clk 0:00:35.7]} 46... Qg6 {[%clk 0:00:02.6]} 47. g4 {[%clk 0:00:31]}
47... fxg3+ {[%clk 0:00:02]} 48. fxg3 {[%clk 0:00:31.3]} 48... h4 {[%clk
0:00:01.9]} 49. gxh4 {[%clk 0:00:30.6]} 49... g4 {[%clk 0:00:02.8]} 50. hxg4
{[%clk 0:00:28.5]} 50... Qxg4 {[%clk 0:00:03.7]} 51. Re4 {[%clk 0:00:25.9]}
51... Qf5 {[%clk 0:00:03.4]} 52. Qe3 {[%clk 0:00:19]} 52... Qg6 {[%clk
0:00:02.9]} 53. h5 {[%clk 0:00:11.9]} 53... Qh7 {[%clk 0:00:03.3]} 54. Rh4
{[%clk 0:00:10.5]} 54... Bh6 {[%clk 0:00:03.6]} 55. Qe4 {[%clk 0:00:10.6]} 55...
Qg7 {[%clk 0:00:04]} 56. Qg6 {[%clk 0:00:06.5]} 56... Qf8 {[%clk 0:00:04.6]} 57.
Qf5 {[%clk 0:00:06.2]} 57... Qg7 {[%clk 0:00:05]} 58. Qg6 {[%clk 0:00:06.6]}
58... Qf8 {[%clk 0:00:05.5]} 59. Qc2 {[%clk 0:00:07.2]} 59... Qb8+ {[%clk
0:00:06]} 60. Kh1 {[%clk 0:00:06.5]} 60... Qg3 {[%clk 0:00:06.7]} 61. Qe2 {[%clk
0:00:03.4]} 61... Qg7 {[%clk 0:00:05.5]} 62. d5 {[%clk 0:00:03.2]} 62... Qa7
{[%clk 0:00:05]} 63. Rd4 {[%clk 0:00:01.7]} 63... Qxc5 {[%clk 0:00:04.8]} 64.
Rd1 {[%clk 0:00:02.4]} 64... Qb4 {[%clk 0:00:04.6]} 65. d6 {[%clk 0:00:02]}
65... Qg4 {[%clk 0:00:05.2]} 66. d7 {[%clk 0:00:01.5]} 66... Qh3+ {[%clk
0:00:05.8]} 67. Nh2 {[%clk 0:00:02.4]} 67... Bf4 {[%clk 0:00:05.4]} 68. d8=Q
{[%clk 0:00:02.6]} 68... Rxd8 {[%clk 0:00:02.8]} 69. Rxd8+ {[%clk 0:00:03.5]}
69... Kh7 {[%clk 0:00:03.2]} 70. Qe4+ {[%clk 0:00:03.7]} 70... f5 {[%clk
0:00:02.3]} 71. Qe7+ {[%clk 0:00:04]} 71... Kh6 {[%clk 0:00:02.2]} 72. Rh8#
{[%clk 0:00:03.8]} 1-0

[Event "Early-Titled-Tuesday-Blitz-February-27-2024"]
[Site "Chess.com"]
[Date "2024.02.27"]
[Round "10"]
[White "Predator0608"]
[Black "N4700000"]
[Result "0-1"]
[WhiteElo "2556"]
[BlackElo "2481"]
[TimeControl "180+1"]
[EndTime "9:57:35 PST"]
[Termination "N4700000 won by resignation"]

1. f4 {[%clk 0:02:56]} 1... c5 {[%clk 0:02:57.1]} 2. Nf3 {[%clk 0:02:54.9]} 2...
Nc6 {[%clk 0:02:55.8]} 3. g3 {[%clk 0:02:55.4]} 3... d5 {[%clk 0:02:53]} 4. Bg2
{[%clk 0:02:55.5]} 4... g6 {[%clk 0:02:53.3]} 5. O-O {[%clk 0:02:56.4]} 5... Bg7
{[%clk 0:02:53.6]} 6. d3 {[%clk 0:02:57.3]} 6... Nh6 {[%clk 0:02:53.2]} 7. e4
{[%clk 0:02:57.2]} 7... dxe4 {[%clk 0:02:36.3]} 8. dxe4 {[%clk 0:02:58.1]} 8...
Qxd1 {[%clk 0:02:35.2]} 9. Rxd1 {[%clk 0:02:59]} 9... Nd4 {[%clk 0:02:33.5]} 10.
Nxd4 {[%clk 0:02:39.9]} 10... Bxd4+ {[%clk 0:02:31.6]} 11. Kf1 {[%clk
0:02:39.9]} 11... Ng4 {[%clk 0:02:15.4]} 12. h3 {[%clk 0:02:38.9]} 12... Ne3+
{[%clk 0:01:41.4]} 13. Bxe3 {[%clk 0:02:37.5]} 13... Bxe3 {[%clk 0:01:42.3]} 14.
Na3 {[%clk 0:02:20]} 14... Bd7 {[%clk 0:01:23]} 15. e5 {[%clk 0:02:05.5]} 15...
g5 {[%clk 0:00:55.5]} 16. fxg5 {[%clk 0:01:34.7]} 16... Bxg5 {[%clk 0:00:52.5]}
17. Bxb7 {[%clk 0:01:32]} 17... Rb8 {[%clk 0:00:51.1]} 18. Bd5 {[%clk
0:01:05.3]} 18... Bxh3+ {[%clk 0:00:46.8]} 19. Kf2 {[%clk 0:01:05.3]} 19... O-O
{[%clk 0:00:35.5]} 20. Nc4 {[%clk 0:01:00.6]} 20... Bf5 {[%clk 0:00:31.1]} 21.
c3 {[%clk 0:00:55.9]} 21... e6 {[%clk 0:00:23.6]} 22. Bf3 {[%clk 0:00:52.5]}
22... Rfd8 {[%clk 0:00:22.1]} 23. b3 {[%clk 0:00:51.8]} 23... Rxd1 {[%clk
0:00:12.6]} 24. Rxd1 {[%clk 0:00:51.2]} 24... Rd8 {[%clk 0:00:13.2]} 25. Nd6
{[%clk 0:00:48.3]} 25... Bg6 {[%clk 0:00:06.2]} 26. Ke2 {[%clk 0:00:48.7]} 26...
Be7 {[%clk 0:00:06.2]} 27. b4 {[%clk 0:00:42.6]} 27... cxb4 {[%clk 0:00:05.7]}
28. cxb4 {[%clk 0:00:43.5]} 28... f6 {[%clk 0:00:06.1]} 29. Bg4 {[%clk
0:00:44.1]} 29... fxe5 {[%clk 0:00:04.9]} 30. Bxe6+ {[%clk 0:00:44.7]} 30... Kg7
{[%clk 0:00:05.3]} 31. Nb5 {[%clk 0:00:42.5]} 31... Rxd1 {[%clk 0:00:03.7]} 32.
Kxd1 {[%clk 0:00:43.4]} 32... Bxb4 {[%clk 0:00:03.6]} 33. Nxa7 {[%clk
0:00:43.9]} 33... Bc5 {[%clk 0:00:04]} 34. Nc6 {[%clk 0:00:43.7]} 34... Kf6
{[%clk 0:00:04.2]} 35. Bd5 {[%clk 0:00:42.7]} 35... e4 {[%clk 0:00:04]} 36. a4
{[%clk 0:00:42.4]} 36... e3 {[%clk 0:00:04.2]} 37. a5 {[%clk 0:00:41.5]} 37...
Bd3 {[%clk 0:00:04.1]} 38. Bf3 {[%clk 0:00:38.2]} 38... Bb5 {[%clk 0:00:04]} 39.
Nd8 {[%clk 0:00:32.5]} 39... Bb4 {[%clk 0:00:03.9]} 40. Nb7 {[%clk 0:00:26]}
40... Ba6 {[%clk 0:00:04.3]} 41. Nd8 {[%clk 0:00:21]} 41... Bxa5 {[%clk
0:00:04.1]} 42. Nc6 {[%clk 0:00:20.5]} 42... Bc3 {[%clk 0:00:04.6]} 43. Kc2
{[%clk 0:00:19.1]} 43... Be1 {[%clk 0:00:03.8]} 44. Kd1 {[%clk 0:00:19.1]} 44...
Bxg3 {[%clk 0:00:03.9]} 45. Nd4 {[%clk 0:00:19.4]} 45... Be5 {[%clk 0:00:03.9]}
46. Ne2 {[%clk 0:00:19.6]} 46... Bb5 {[%clk 0:00:03.6]} 47. Ke1 {[%clk
0:00:19.8]} 47... Kg5 {[%clk 0:00:03.8]} 48. Kf1 {[%clk 0:00:20.2]} 48... h5
{[%clk 0:00:04.3]} 49. Kg2 {[%clk 0:00:20.3]} 49... h4 {[%clk 0:00:04.9]} 50.
Ng1 {[%clk 0:00:19.9]} 50... Bd7 {[%clk 0:00:05.5]} 51. Nh3+ {[%clk 0:00:19.6]}
51... Kf6 {[%clk 0:00:05.4]} 52. Ng1 {[%clk 0:00:19.4]} 52... Bb5 {[%clk
0:00:05.6]} 53. Ne2 {[%clk 0:00:18.2]} 53... Bc4 {[%clk 0:00:04.6]} 54. Bg4
{[%clk 0:00:18.3]} 54... Bd5+ {[%clk 0:00:04.5]} 55. Kg1 {[%clk 0:00:15.7]}
55... Kg5 {[%clk 0:00:04.9]} 56. Bh3 {[%clk 0:00:15.5]} 56... Bg3 {[%clk
0:00:04.7]} 57. Kf1 {[%clk 0:00:13.1]} 57... Bf2 {[%clk 0:00:05.2]} 58. Nc3
{[%clk 0:00:11.1]} 58... Bf3 {[%clk 0:00:05.3]} 59. Ne2 {[%clk 0:00:09.7]} 59...
Bg4 {[%clk 0:00:05.7]} 60. Bg2 {[%clk 0:00:10.2]} 60... h3 {[%clk 0:00:05.3]}
61. Bh1 {[%clk 0:00:10.7]} 61... h2 {[%clk 0:00:05.5]} 62. Nc3 {[%clk
0:00:09.7]} 62... Bh3+ {[%clk 0:00:05.4]} 63. Ke2 {[%clk 0:00:09.7]} 63... Kg4
{[%clk 0:00:05.7]} 64. Ne4 {[%clk 0:00:10]} 64... Bh4 {[%clk 0:00:05.2]} 65.
Kxe3 {[%clk 0:00:09.7]} 65... Bg5+ {[%clk 0:00:03.8]} 66. Ke2 {[%clk 0:00:09.3]}
66... Bf4 {[%clk 0:00:03.3]} 67. Nf2+ {[%clk 0:00:10.2]} 67... Kh4 {[%clk
0:00:03.2]} 68. Kf3 {[%clk 0:00:10.2]} 68... Bg3 {[%clk 0:00:02.1]} 69. Ne4
{[%clk 0:00:09.7]} 69... Bc7 {[%clk 0:00:02.7]} 70. Ke3 {[%clk 0:00:08.3]} 70...
Bg4 {[%clk 0:00:02.8]} 71. Kf2 {[%clk 0:00:06.7]} 71... Bf5 {[%clk 0:00:03]} 72.
Nd2 {[%clk 0:00:06.5]} 72... Bb6+ {[%clk 0:00:02.8]} 73. Kf1 {[%clk 0:00:06.4]}
73... Bc7 {[%clk 0:00:03.4]} 74. Nf3+ {[%clk 0:00:07.3]} 74... Kg3 {[%clk
0:00:02.6]} 75. Ne1 {[%clk 0:00:07.6]} 75... Bh3+ {[%clk 0:00:03.1]} 76. Ke2
{[%clk 0:00:08]} 76... Ba5 {[%clk 0:00:02.6]} 77. Nd3 {[%clk 0:00:08.1]} 77...
Bg2 {[%clk 0:00:02.9]} 78. Nf2 {[%clk 0:00:03.5]} 78... Bxh1 {[%clk 0:00:02.7]}
79. Nxh1+ {[%clk 0:00:03.9]} 79... Kg2 {[%clk 0:00:03.3]} 80. Nf2 {[%clk
0:00:04.2]} 80... Bb6 {[%clk 0:00:03.9]} 81. Nh1 {[%clk 0:00:01.9]} 81... Kxh1
{[%clk 0:00:03.6]} 82. Kf1 {[%clk 0:00:02.8]} 82... Bc7 {[%clk 0:00:03.7]} 83.
Kf2 {[%clk 0:00:03.1]} 83... Bb6+ {[%clk 0:00:04.5]} 84. Kf1 {[%clk 0:00:03.6]}
84... Ba7 {[%clk 0:00:05.2]} 85. Ke2 {[%clk 0:00:03.6]} 85... Kg1 {[%clk
0:00:06.1]} 86. Kd3 {[%clk 0:00:04.2]} 86... h1=Q {[%clk 0:00:07]} 87. Kc4
{[%clk 0:00:05.1]} 87... Qc6+ {[%clk 0:00:06.5]} 0-1

[Event "Early-Titled-Tuesday-Blitz-February-27-2024"]
[Site "Chess.com"]
[Date "2024.02.27"]
[Round "10"]
[White "FARIZA2018"]
[Black "joshdaruca"]
[Result "0-1"]
[WhiteElo "2592"]
[BlackElo "2766"]
[TimeControl "180+1"]
[EndTime "9:57:38 PST"]
[Termination "joshdaruca won by resignation"]

1. e4 {[%clk 0:03:00.9]} 1... c5 {[%clk 0:02:51.4]} 2. Nf3 {[%clk 0:03:01]} 2...
d6 {[%clk 0:02:51.1]} 3. d4 {[%clk 0:03:01.3]} 3... cxd4 {[%clk 0:02:52]} 4.
Nxd4 {[%clk 0:03:01.4]} 4... Nf6 {[%clk 0:02:52.4]} 5. Nc3 {[%clk 0:03:01.6]}
5... g6 {[%clk 0:02:53.3]} 6. Be3 {[%clk 0:03:01.2]} 6... Bg7 {[%clk 0:02:53.1]}
7. f3 {[%clk 0:03:01.2]} 7... a6 {[%clk 0:02:53.4]} 8. Qd2 {[%clk 0:02:57.9]}
8... h5 {[%clk 0:02:53.6]} 9. O-O-O {[%clk 0:02:56]} 9... Nbd7 {[%clk 0:02:52]}
10. Kb1 {[%clk 0:02:52.1]} 10... b5 {[%clk 0:02:51.5]} 11. Nd5 {[%clk
0:02:47.5]} 11... Nxd5 {[%clk 0:02:35.9]} 12. exd5 {[%clk 0:02:47.6]} 12... Bb7
{[%clk 0:02:36.4]} 13. Nc6 {[%clk 0:02:22.1]} 13... Qc7 {[%clk 0:02:35.5]} 14.
Bd4 {[%clk 0:02:18.8]} 14... Nf6 {[%clk 0:02:34.7]} 15. Bd3 {[%clk 0:01:41.1]}
15... O-O {[%clk 0:02:31.2]} 16. g4 {[%clk 0:01:00.9]} 16... hxg4 {[%clk
0:02:19.6]} 17. fxg4 {[%clk 0:01:01.1]} 17... Nxd5 {[%clk 0:02:08.1]} 18. Bxg7
{[%clk 0:00:57.5]} 18... Kxg7 {[%clk 0:02:09]} 19. Nd4 {[%clk 0:00:56.2]} 19...
e5 {[%clk 0:02:06.3]} 20. Nf5+ {[%clk 0:00:52.7]} 20... Kf6 {[%clk 0:02:02.2]}
21. Be4 {[%clk 0:00:36.1]} 21... gxf5 {[%clk 0:01:47.9]} 22. Bxd5 {[%clk
0:00:35.9]} 22... Bxd5 {[%clk 0:01:48.6]} 23. Qxd5 {[%clk 0:00:35.9]} 23... fxg4
{[%clk 0:01:15.4]} 24. Qe4 {[%clk 0:00:19.6]} 24... Rac8 {[%clk 0:01:08]} 25.
Rhf1+ {[%clk 0:00:17.7]} 25... Ke7 {[%clk 0:01:07.5]} 26. Rd2 {[%clk 0:00:17.1]}
26... Qc4 {[%clk 0:01:02.5]} 27. Qf5 {[%clk 0:00:13.3]} 27... Qe6 {[%clk
0:01:02.8]} 28. Qg5+ {[%clk 0:00:07.7]} 28... f6 {[%clk 0:01:02.7]} 29. Qe3
{[%clk 0:00:07.9]} 29... Rc6 {[%clk 0:00:46.5]} 30. Rdf2 {[%clk 0:00:07.3]}
30... d5 {[%clk 0:00:42.7]} 31. b3 {[%clk 0:00:07]} 31... d4 {[%clk 0:00:42.8]}
32. Qe4 {[%clk 0:00:07.1]} 32... Kd7 {[%clk 0:00:37.8]} 33. Qh7+ {[%clk
0:00:06.9]} 33... Rf7 {[%clk 0:00:38]} 34. Qg8 {[%clk 0:00:06.8]} 34... Kc7
{[%clk 0:00:38.3]} 35. Rg1 {[%clk 0:00:06.7]} 35... f5 {[%clk 0:00:37.6]} 36.
Rgf1 {[%clk 0:00:06.1]} 36... f4 {[%clk 0:00:37.5]} 37. Re2 {[%clk 0:00:05.5]}
37... Kb7 {[%clk 0:00:33.6]} 38. Rxe5 {[%clk 0:00:05.6]} 38... Qxe5 {[%clk
0:00:33.2]} 39. Qxf7+ {[%clk 0:00:05.9]} 39... Rc7 {[%clk 0:00:33.9]} 40. Qxf4
{[%clk 0:00:06.3]} 40... Qxf4 {[%clk 0:00:30.9]} 41. Rxf4 {[%clk 0:00:06.5]}
41... Rh7 {[%clk 0:00:30.3]} 42. Rxg4 {[%clk 0:00:06.8]} 42... Rxh2 {[%clk
0:00:29.8]} 43. Rxd4 {[%clk 0:00:07.3]} 43... Kc6 {[%clk 0:00:30.5]} 44. Kb2
{[%clk 0:00:07.4]} 44... a5 {[%clk 0:00:30.4]} 45. a3 {[%clk 0:00:07.2]} 45...
Kc5 {[%clk 0:00:31]} 46. Rf4 {[%clk 0:00:06.9]} 46... Kb6 {[%clk 0:00:31.4]} 47.
b4 {[%clk 0:00:07]} 47... axb4 {[%clk 0:00:31.4]} 48. axb4 {[%clk 0:00:07.5]}
48... Rh3 {[%clk 0:00:32]} 49. c3 {[%clk 0:00:07.8]} 49... Kc6 {[%clk
0:00:32.5]} 50. Kb3 {[%clk 0:00:08.1]} 50... Rg3 {[%clk 0:00:32.9]} 51. Rf6+
{[%clk 0:00:08.4]} 51... Kb7 {[%clk 0:00:32.6]} 52. Rd6 {[%clk 0:00:08.6]} 52...
Kc7 {[%clk 0:00:32.8]} 53. Re6 {[%clk 0:00:08.8]} 53... Kb7 {[%clk 0:00:33.1]}
54. Kc2 {[%clk 0:00:08.9]} 54... Rh3 {[%clk 0:00:32.8]} 55. Kd2 {[%clk
0:00:08.7]} 55... Kc7 {[%clk 0:00:33.3]} 56. Re3 {[%clk 0:00:08.3]} 56... Rh5
{[%clk 0:00:33.2]} 57. Kd3 {[%clk 0:00:08.5]} 57... Kd6 {[%clk 0:00:33.9]} 58.
Kd4 {[%clk 0:00:08.8]} 58... Rd5+ {[%clk 0:00:33.5]} 59. Ke4 {[%clk 0:00:09.2]}
59... Rh5 {[%clk 0:00:34.4]} 60. Rd3+ {[%clk 0:00:09]} 60... Kc6 {[%clk
0:00:34.2]} 61. Rf3 {[%clk 0:00:08.7]} 61... Rh4+ {[%clk 0:00:34.1]} 62. Kd3
{[%clk 0:00:08.7]} 62... Rh6 {[%clk 0:00:33.9]} 63. Rf4 {[%clk 0:00:08]} 63...
Kb6 {[%clk 0:00:34.3]} 64. Kd4 {[%clk 0:00:08]} 64... Rd6+ {[%clk 0:00:33.8]}
65. Ke5 {[%clk 0:00:08.4]} 65... Rd3 {[%clk 0:00:34]} 66. Rf6+ {[%clk
0:00:07.6]} 66... Kc7 {[%clk 0:00:34.4]} 67. Rf7+ {[%clk 0:00:07.3]} 67... Kc6
{[%clk 0:00:34.4]} 68. Rf6+ {[%clk 0:00:06.3]} 68... Kc7 {[%clk 0:00:34.9]} 69.
Rf7+ {[%clk 0:00:04.7]} 69... Kb6 {[%clk 0:00:30.4]} 70. Rf6+ {[%clk 0:00:03.6]}
70... Kb7 {[%clk 0:00:30.9]} 71. Rf7+ {[%clk 0:00:03.8]} 71... Ka6 {[%clk
0:00:31.2]} 72. Rf6+ {[%clk 0:00:03.5]} 72... Ka7 {[%clk 0:00:31.8]} 73. Rf7+
{[%clk 0:00:04]} 73... Kb8 {[%clk 0:00:32.1]} 74. Rf6 {[%clk 0:00:03.7]} 74...
Rxc3 {[%clk 0:00:31.4]} 75. Rb6+ {[%clk 0:00:04.2]} 75... Ka7 {[%clk 0:00:32.3]}
76. Rxb5 {[%clk 0:00:04.4]} 76... Ka6 {[%clk 0:00:33.2]} 77. Rb8 {[%clk
0:00:04]} 77... Rd3 {[%clk 0:00:32.7]} 78. Ke4 {[%clk 0:00:04.2]} 78... Rd1
{[%clk 0:00:33.2]} 79. Rc8 {[%clk 0:00:03.4]} 79... Kb5 {[%clk 0:00:33.1]} 80.
Rc5+ {[%clk 0:00:03.6]} 80... Kxb4 {[%clk 0:00:33.5]} 81. Rd5 {[%clk 0:00:04.3]}
81... Rf1 {[%clk 0:00:33.9]} 82. Rd4+ {[%clk 0:00:04.5]} 82... Kc3 {[%clk
0:00:33.7]} 83. Rd3+ {[%clk 0:00:05.1]} 83... Kc4 {[%clk 0:00:34.3]} 84. Rf3
{[%clk 0:00:05.4]} 84... Re1+ {[%clk 0:00:34]} 85. Re3 {[%clk 0:00:06]} 85...
Rh1 {[%clk 0:00:34.9]} 86. Ke5 {[%clk 0:00:05.9]} 86... Rh5+ {[%clk 0:00:33.6]}
87. Kf4 {[%clk 0:00:05.9]} 87... Kd4 {[%clk 0:00:33.4]} 88. Re4+ {[%clk
0:00:06.4]} 88... Kd5 {[%clk 0:00:34.1]} 89. Re3 {[%clk 0:00:07.1]} 89... Rh8
{[%clk 0:00:33.3]} 90. Re1 {[%clk 0:00:07.1]} 90... Rf8+ {[%clk 0:00:33.5]} 91.
Kg3 {[%clk 0:00:07.6]} 91... Kd4 {[%clk 0:00:33.4]} 92. Kg4 {[%clk 0:00:08]}
92... Kd3 {[%clk 0:00:31.8]} 93. Re7 {[%clk 0:00:08]} 93... Rd8 {[%clk
0:00:30.9]} 94. Kg5 {[%clk 0:00:08.4]} 94... Kd4 {[%clk 0:00:30.8]} 95. Kf4
{[%clk 0:00:08.7]} 95... Rf8+ {[%clk 0:00:30.5]} 96. Kg3 {[%clk 0:00:09.3]}
96... Kd5 {[%clk 0:00:31.4]} 97. Kg4 {[%clk 0:00:09.7]} 97... Kd6 {[%clk
0:00:31.4]} 98. Re1 {[%clk 0:00:10.4]} 98... Kd7 {[%clk 0:00:31.8]} 99. Kg3
{[%clk 0:00:11.1]} 99... Rf6 {[%clk 0:00:32]} 100. Kg4 {[%clk 0:00:11.8]} 100...
Re6 {[%clk 0:00:32.9]} 101. Kg5 {[%clk 0:00:12.3]} 101... Rxe1 {[%clk
0:00:32.9]} 0-1